bitfinex/quotes_ETHUSD_20241004
["timestamp","ask_amount","ask_price","bid_price","bid_amount"]
[1728046220129,4.18779,2387.9,2387.5,0.4197]
[1728046220315,4.18779,2387.9,2387.2,0.87588187]
[1728046220316,4.18822,2387.7,2387.2,0.87588187]
[1728046220637,0.833,2387.8,2387.4,4.18852]
[1728046221148,0.833,2387.8,2387.4,4.18865]
[1728046221313,5.52007264,2387.8,2387.3,4.1888]
[1728046221512,5.52007264,2387.8,2387.3,8.37753]
[1728046222050,1.33212264,2387.8,2387.3,4.18873]
[1728046222256,0.833,2387.8,2387.3,4.18873]
[1728046222612,4.18814,2387.7,2387.2,5.06487187]
[1728046222841,4.18856,2387.5,2387.0,0.87588187]
[1728046223111,4.18826,2387.7,2387.0,5.06515187]
[1728046223312,4.18826,2387.7,2387.2,4.18899]
[1728046223555,5.109175,2387.7,2387.2,4.18899]
[1728046223915,5.109125,2387.7,2387.2,4.18899]
[1728046224112,0.920915,2387.7,2387.2,4.18899]
[1728046224484,0.833,2387.8,2387.4,4.18848]
[1728046224749,0.833,2387.8,2387.2,4.18889]
[1728046224750,5.02109,2387.8,2387.3,4.18881]
[1728046224955,0.833,2387.8,2387.1,0.87588187]
[1728046225116,4.18842,2387.6,2387.1,4.18906]
[1728046225316,4.98359,2387.5,2387.0,4.18924]
[1728046225514,1.712184,2387.5,2387.1,4.18905]
[1728046226982,5.900764,2387.5,2386.9,1.29558187]
[1728046227291,5.900764,2387.5,2386.8,0.87588187]
[1728046227292,4.18911,2387.2,2386.8,0.87588187]
[1728046227568,0.8081,2386.8,2386.5,0.87588187]
[1728046227722,0.8081,2386.8,2386.4,4.19033]
[1728046227918,4.99792,2386.8,2386.2,4.19065]
[1728046228233,4.18992,2386.7,2386.2,8.38131]
[1728046228426,4.99792,2386.8,2386.3,4.19057]
[1728046228616,4.1901,2386.6,2386.2,0.09147409]
[1728046228821,4.1901,2386.6,2386.1,4.19088]
[1728046229016,8.38008,2386.7,2386.2,0.09147409]
[1728046229258,4.19004,2386.7,2386.2,0.09147409]
[1728046229430,4.19041,2386.4,2386.2,0.09147409]
[1728046229632,5.17738692,2386.3,2386.2,0.09147409]
[1728046229962,0.7979,2386.0,2385.5,8.38368]
[1728046230119,0.7979,2386.0,2385.5,4.19182]
[1728046230319,0.7979,2386.0,2385.6,4.19178]
[1728046230773,4.98904,2386.0,2385.5,8.38371]
[1728046230916,0.7979,2386.0,2385.5,4.19182]
[1728046231233,0.7979,2386.0,2385.3,7.61191]
[1728046231234,1.715896,2386.0,2385.3,4.61191]
[1728046231444,4.19172,2385.7,2385.2,0.4197]
[1728046231658,0.8246,2385.5,2384.8,0.87588187]
[1728046231830,0.8246,2385.5,2384.9,4.19302]
[1728046231831,4.19232,2385.4,2384.9,4.19302]
[1728046232323,8.38462,2385.4,2384.9,4.19302]
[1728046232537,0.920922,2385.3,2384.7,4.19326]
[1728046232754,0.920922,2385.3,2384.9,4.19302]
[1728046232961,0.8246,2385.5,2384.9,4.19302]
[1728046233168,0.8246,2385.5,2385.2,4.19251]
[1728046233723,0.8246,2385.5,2385.2,4.19241]
[1728046233927,4.19132,2385.9,2385.4,4.19216]
[1728046234119,0.8158,2385.8,2385.3,4.19234]
[1728046234433,0.8158,2385.8,2385.3,4.19224]
[1728046234934,4.19175,2385.7,2385.1,8.38514]
[1728046235128,4.19185,2385.6,2385.1,4.19256]
[1728046235836,9.19889,2385.8,2385.2,4.19251]
[1728046236224,4.19166,2385.7,2385.1,4.19256]
[1728046236559,5.59742992,2385.7,2385.1,4.19256]
[1728046236764,9.81000918,2385.6,2384.7,3.0]
[1728046236922,9.81000918,2385.6,2384.5,0.4197]
[1728046236923,4.19226,2385.4,2384.5,0.4197]
[1728046237124,4.19226,2385.4,2384.9,4.19292]
[1728046237350,4.19256,2385.2,2384.7,4.19337]
[1728046237549,4.19256,2385.2,2384.5,0.4197]
[1728046237550,4.98714,2385.2,2384.6,4.19348]
[1728046237762,5.90508,2385.2,2384.7,4.19336]
[1728046237970,1.71254,2385.2,2384.9,4.19291]
[1728046238370,0.7946,2385.2,2384.7,4.19338]
[1728046238586,0.8332,2385.5,2385.3,4.19232]
[1728046238870,0.8332,2385.5,2385.4,4.19216]
[1728046239070,0.8332,2385.9,2385.6,4.19164]
[1728046239401,0.8332,2385.9,2385.7,4.19163]
[1728046239567,0.8332,2385.9,2385.6,4.19164]
[1728046239934,5.0246,2385.9,2385.4,4.19199]
[1728046240137,4.19147,2385.8,2385.1,3.0]
[1728046240449,4.19147,2385.8,2385.0,4.19275]
[1728046240660,4.19184,2385.6,2385.1,4.19253]
[1728046240848,5.030171,2385.6,2385.1,4.19265]
[1728046241050,0.7653,2385.5,2385.2,4.19242]
[1728046241355,0.7653,2385.8,2385.6,4.19178]
[1728046241529,0.7653,2385.8,2385.7,4.19164]
[1728046241971,0.7653,2385.8,2385.1,0.4197]
[1728046241972,0.7653,2385.8,2385.3,4.1922]
[1728046242147,0.7653,2385.8,2385.4,4.19206]
[1728046242353,0.7653,2385.8,2385.4,8.38412]
[1728046242659,0.7653,2385.8,2385.6,4.19164]
[1728046242838,0.7653,2385.8,2385.5,0.09529694]
[1728046243178,0.7653,2385.8,2385.6,4.28696759]
[1728046243335,0.7653,2385.8,2385.6,0.09516759]
[1728046243537,0.7653,2385.8,2385.2,4.19238]
[1728046243538,0.7653,2385.8,2385.3,4.19234]
[1728046243775,0.7653,2385.8,2385.7,0.09503825]
[1728046243944,0.7653,2385.8,2385.3,4.19234]
[1728046244307,0.7653,2385.8,2385.7,0.09528075]
[1728046244520,0.7653,2385.8,2385.5,4.19189]
[1728046244793,0.7653,2385.8,2385.5,8.38379]
[1728046244998,0.7653,2385.8,2385.6,0.09541009]
[1728046245195,0.7653,2385.8,2385.6,4.28719009]
[1728046245600,0.7653,2385.8,2385.7,4.19164]
[1728046245904,0.7653,2385.8,2385.7,4.28692075]
[1728046246254,0.7663,2386.1,2385.8,4.19145]
[1728046246495,0.7663,2386.1,2385.7,0.09528075]
[1728046246707,1.262007,2386.1,2385.9,0.09502211]
[1728046246865,1.262007,2386.1,2385.8,0.09515143]
[1728046247197,1.262007,2386.1,2386.0,0.0948928]
[1728046247355,1.262007,2386.1,2385.9,0.09502211]
[1728046247554,1.262007,2386.1,2386.0,0.0948928]
[1728046247755,1.262007,2386.1,2385.8,4.19138]
[1728046248058,0.7663,2386.1,2386.0,0.0948928]
[1728046248265,0.7572,2386.6,2386.2,4.19062]
[1728046248462,0.7572,2386.6,2386.3,4.19058]
[1728046248696,0.7572,2386.6,2386.4,4.19029]
[1728046249105,0.7572,2386.6,2386.5,0.09409423]
[1728046249355,1.251891,2386.6,2386.5,0.09409423]
[1728046249553,1.251891,2386.6,2386.2,4.19066]
[1728046249740,5.441951,2386.6,2386.5,0.09401706]
[1728046249948,5.441951,2386.6,2386.0,4.1911]
[1728046250250,1.251891,2386.6,2385.9,4.19117]
[1728046250412,4.19054,2386.4,2385.9,8.38236]
[1728046250619,5.1537881,2386.4,2385.7,4.19154]
[1728046250823,0.8224,2386.3,2385.8,4.19145]
[1728046251066,0.8224,2386.3,2385.9,8.38226]
[1728046251268,0.8224,2386.3,2386.0,4.19104]
[1728046251418,0.8224,2386.3,2386.1,4.19093]
[1728046251616,0.8224,2386.3,2386.1,8.38177]
[1728046251836,0.8224,2386.3,2386.2,4.19076]
[1728046252128,0.7998,2386.8,2386.3,4.19058]
[1728046252329,0.7998,2386.8,2386.4,4.19039]
[1728046253061,0.7998,2386.8,2386.5,4.19013]
[1728046253264,0.7998,2386.8,2386.3,4.19044]
[1728046253563,0.7546,2387.1,2386.8,4.1897]
[1728046253874,4.94382,2387.1,2386.7,4.18974]
[1728046254741,0.7546,2387.1,2386.7,4.18974]
[1728046254926,1.248961,2387.1,2386.5,4.19009]
[1728046255276,4.18936,2387.0,2386.5,4.19009]
[1728046255438,4.18936,2387.0,2386.5,8.38019]
[1728046255941,0.7546,2387.1,2386.8,4.1897]
[1728046256460,0.7546,2387.1,2386.9,4.18945]
[1728046257034,0.7774,2387.4,2387.0,4.18935]
[1728046257227,1.85024296,2387.4,2387.1,4.18917]
[1728046257426,0.7774,2387.4,2387.1,4.18917]
[1728046257681,0.7774,2387.4,2387.3,4.18883]
[1728046257859,0.7774,2387.7,2387.3,4.18883]
[1728046258030,0.7774,2387.7,2387.4,4.18865]
[1728046258230,0.7774,2387.7,2387.4,0.09253024]
[1728046258468,0.496545,2387.6,2387.4,0.09253024]
[1728046258779,0.496545,2387.6,2387.2,4.189]
[1728046258780,0.496545,2387.6,2387.2,8.37789]
[1728046259286,9.15389,2387.7,2387.2,4.18889]
[1728046259428,4.96564,2387.7,2387.2,4.18889]
[1728046259624,4.96564,2387.7,2387.3,0.09265939]
[1728046259870,4.96564,2387.7,2387.2,4.18889]
[1728046260054,4.96564,2387.7,2387.4,0.09253024]
[1728046260256,4.18865,2387.4,2387.3,0.09265939]
[1728046260457,4.96502,2387.3,2386.6,4.63643]
[1728046260660,4.96502,2387.3,2386.6,4.18993]
[1728046260661,4.18927,2387.1,2386.6,4.18993]
[1728046261470,8.37828,2387.2,2386.6,4.18993]
[1728046261772,0.7761,2387.3,2386.7,4.18986]
[1728046262083,4.85875918,2387.5,2386.6,5.05613]
[1728046262084,0.8093,2387.5,2386.6,5.05613]
[1728046262232,0.8093,2387.5,2387.3,4.18882]
[1728046263233,0.8093,2387.5,2387.2,4.18897]
[1728046263234,4.96074,2387.8,2387.2,4.18897]
[1728046263436,0.7727,2387.8,2387.4,4.18864]
[1728046263743,4.18813,2387.7,2387.2,4.18887]
[1728046264549,4.18831,2387.6,2387.2,4.18887]
[1728046264797,4.96076,2387.8,2387.3,4.1887]
[1728046264974,4.96076,2387.8,2387.3,4.18875]
[1728046265182,0.7727,2387.8,2387.4,4.18865]
[1728046265546,4.96067,2387.8,2387.4,4.18865]
[1728046265858,1.687535,2387.8,2387.4,4.18865]
[1728046266162,5.00483,2388.1,2387.6,4.18814]
[1728046266550,0.8174,2388.1,2387.6,4.18816]
[1728046266864,0.8174,2388.1,2387.7,4.1881]
[1728046267050,5.00494,2388.1,2387.6,8.37637]
[1728046267242,5.00486,2388.1,2387.6,4.18816]
[1728046267985,4.18763,2388.0,2387.4,4.18853]
[1728046268210,10.111633,2388.1,2387.6,4.18823]
[1728046268363,4.18761,2388.0,2387.6,4.18823]
[1728046268564,4.18761,2388.0,2387.4,4.18849]
[1728046268863,5.924073,2388.1,2387.1,4.18916]
[1728046268864,0.7924,2387.6,2387.1,4.18905]
[1728046269065,0.7924,2387.6,2387.2,4.18892]
[1728046269718,0.7924,2387.6,2386.8,8.79889]
[1728046269865,4.1885,2387.5,2386.8,4.18958]
[1728046270063,0.7924,2387.6,2387.2,4.18889]
[1728046270625,0.7924,2387.6,2387.2,4.18894]
[1728046270775,0.7924,2387.6,2387.2,4.18892]
[1728046271313,4.98074,2387.6,2387.0,4.18922]
[1728046271464,4.98074,2387.6,2387.0,8.37847]
[1728046271838,4.18849,2387.5,2387.0,8.37849]
[1728046272007,4.18879,2387.4,2386.8,4.18955]
[1728046272395,8.3776,2387.4,2386.9,4.28233143]
[1728046272711,0.919213,2388.1,2386.9,4.28233143]
[1728046272712,5.01443,2387.8,2387.3,4.18883]
[1728046272908,5.01443,2387.8,2387.4,4.18862]
[1728046272909,0.8264,2387.8,2387.4,4.18862]
[1728046273079,0.8264,2387.8,2387.6,4.1882]
[1728046273402,0.8264,2387.8,2387.7,0.09178816]
[1728046273707,5.106743,2388.1,2387.9,4.18777]
[1728046273708,0.8068,2388.1,2387.9,4.18777]
[1728046274061,4.18701,2388.4,2388.0,0.09140086]
[1728046274305,5.831181,2388.4,2388.0,0.09140086]
[1728046274614,4.18723,2388.3,2388.0,0.09140086]
[1728046274790,5.831101,2388.4,2387.8,4.18794]
[1728046274791,4.18726,2388.2,2387.8,4.18794]
[1728046274966,4.18726,2388.2,2388.1,0.09127178]
[1728046275167,4.18726,2388.2,2387.8,4.18794]
[1728046275460,4.18708,2388.3,2388.1,0.09127178]
[1728046275708,1.0018251,2388.3,2387.7,8.37597]
[1728046275943,4.18726,2388.2,2387.7,8.37599]
[1728046276148,0.8068,2388.4,2388.0,4.18743]
[1728046277245,0.8068,2388.4,2387.5,4.63497]
[1728046277418,4.96268,2387.9,2387.4,4.18854]
[1728046277622,1.271168,2387.9,2387.4,4.18854]
[1728046277808,4.96275,2387.9,2387.4,4.18854]
[1728046278336,4.96275,2387.9,2387.2,4.63536]
[1728046278659,4.18804,2387.8,2387.2,4.63536]
[1728046278868,0.7749,2387.9,2387.5,4.18846]
[1728046279155,0.7749,2387.9,2387.4,4.18849]
[1728046279412,0.7749,2387.9,2387.5,4.18839]
[1728046279562,0.7749,2387.9,2387.6,4.1883]
[1728046279761,4.96268,2387.9,2387.4,8.37706]
[1728046280464,4.96268,2387.9,2387.4,4.18849]
[1728046280826,4.96268,2387.9,2387.4,8.37706]
[1728046281162,4.96268,2387.9,2387.4,4.18849]
[1728046281467,4.18795,2387.8,2387.2,4.63537]
[1728046281668,4.18829,2387.7,2387.2,8.37778]
[1728046281823,4.18829,2387.7,2387.3,4.18881]
[1728046283035,4.18823,2387.7,2387.0,4.63575]
[1728046283240,4.18848,2387.5,2387.1,3.0]
[1728046283448,4.18844,2387.6,2387.0,4.63571]
[1728046283672,0.7749,2387.9,2387.0,4.63571]
[1728046283972,0.7788,2387.4,2386.8,4.60929]
[1728046284181,0.7788,2387.4,2386.7,0.4465]
[1728046284182,4.18909,2387.2,2386.7,4.63628]
[1728046284388,4.18894,2387.3,2386.8,4.1897]
[1728046284560,4.18892,2387.3,2386.8,4.1897]
[1728046284762,4.18892,2387.3,2386.8,8.37931]
[1728046285281,4.18892,2387.3,2386.7,0.4465]
[1728046285438,4.1892,2387.1,2386.6,4.18995]
[1728046285633,0.496772,2387.3,2386.4,4.63676]
[1728046285833,4.99507,2387.2,2386.7,4.18988]
[1728046286032,4.99507,2387.2,2386.5,4.19007]
[1728046286277,4.18936,2387.0,2386.5,8.38021]
[1728046286461,4.9951,2387.2,2386.5,4.19023]
[1728046286634,4.99509,2387.2,2386.7,4.1898]
[1728046286835,4.99509,2387.2,2386.5,8.38032]
[1728046287137,4.18936,2387.0,2386.3,4.19047]
[1728046287331,4.18972,2386.8,2386.3,8.38096]
[1728046287575,4.18972,2386.8,2386.4,4.2838566]
[1728046287738,4.18954,2386.9,2386.4,4.2838566]
[1728046287940,4.18984,2386.8,2386.4,0.0934566]
[1728046288502,8.37966,2386.8,2386.4,0.0934566]
[1728046288650,0.7974,2387.1,2386.4,0.0934566]
[1728046288962,0.7974,2387.1,2386.9,4.18939]
[1728046289172,4.95763,2387.4,2387.0,0.09268126]
[1728046289678,9.14644,2387.4,2387.0,0.09268126]
[1728046289893,4.18885,2387.3,2387.0,0.09268126]
[1728046290100,4.95763,2387.4,2387.0,0.09268126]
[1728046290983,4.95763,2387.4,2387.0,4.28201126]
[1728046292055,0.7502,2387.7,2387.2,4.189]
[1728046292261,4.93841,2387.7,2387.2,4.189]
[1728046292450,4.93841,2387.7,2387.3,0.09260432]
[1728046292864,4.93841,2387.7,2387.0,4.63575]
[1728046293064,4.18849,2387.5,2387.4,0.09247517]
[1728046293288,0.493841,2387.6,2387.0,4.18925]
[1728046293480,4.18848,2387.5,2387.4,0.09244433]
[1728046293670,4.18848,2387.5,2387.0,4.18925]
[1728046293883,4.18848,2387.5,2387.4,0.09244433]
[1728046294194,5.1505631,2387.5,2386.8,8.82571]
[1728046294353,5.1505631,2387.5,2387.4,0.09244433]
[1728046294573,5.1505631,2387.5,2386.8,4.1896]
[1728046294824,4.18878,2387.4,2387.0,4.18935]
[1728046295239,0.7502,2387.7,2386.9,0.09309021]
[1728046295381,0.7502,2387.7,2387.2,4.18891]
[1728046295382,4.93842,2387.7,2387.2,4.18891]
[1728046295881,4.93842,2387.7,2387.3,0.09257348]
[1728046296297,4.93842,2387.7,2387.1,4.63551]
[1728046296298,4.18831,2387.6,2387.1,4.63551]
[1728046296512,4.18873,2387.4,2386.9,4.18941]
[1728046296822,4.18845,2387.6,2387.0,4.18923]
[1728046296823,4.18849,2387.5,2387.0,4.18923]
[1728046297003,0.493865,2387.6,2387.2,4.18898]
[1728046297214,0.7502,2387.7,2387.3,4.18871]
[1728046297412,4.93833,2387.7,2387.3,4.18871]
[1728046297720,4.93833,2387.7,2387.2,4.18899]
[1728046297721,4.93847,2387.7,2387.2,4.18899]
[1728046298042,4.93847,2387.7,2386.8,4.72859553]
[1728046298043,4.18848,2387.5,2387.1,4.18907]
[1728046298240,8.3771,2387.5,2387.0,4.1893]
[1728046298404,8.3771,2387.5,2386.9,5.06538187]
[1728046298405,4.18868,2387.4,2386.9,4.18943]
[1728046298606,4.18848,2387.5,2386.9,4.18943]
[1728046298808,4.18848,2387.5,2386.8,3.87588187]
[1728046298809,4.93842,2387.7,2387.2,4.18883]
[1728046299010,0.7502,2387.7,2387.3,4.18866]
[1728046299189,4.18789,2387.9,2387.4,4.18855]
[1728046299396,0.8166,2388.0,2387.4,4.18859]
[1728046299590,9.42155199,2388.8,2387.4,4.18859]
[1728046299591,0.8196,2388.6,2388.1,4.18735]
[1728046299840,0.8196,2388.6,2388.0,4.18758]
[1728046299841,4.18681,2388.5,2388.0,4.18758]
[1728046300039,4.18681,2388.5,2387.9,0.4465]
[1728046300040,4.18709,2388.3,2387.9,0.4465]
[1728046300394,4.18691,2388.4,2387.9,4.63427]
[1728046301229,0.8196,2388.6,2388.1,4.18741]
[1728046301434,5.00619,2388.6,2388.1,4.18734]
[1728046301630,4.18673,2388.5,2387.9,8.82177]
[1728046301987,4.18673,2388.5,2388.0,4.18751]
[1728046302439,4.18673,2388.5,2388.1,0.09154055]
[1728046302793,4.18673,2388.5,2388.1,4.27896055]
[1728046303026,4.18673,2388.5,2388.1,0.09154055]
[1728046303425,4.18697,2388.4,2388.1,0.09154055]
[1728046303629,4.18697,2388.4,2387.9,4.63416]
[1728046303796,4.18716,2388.3,2388.2,0.09107228]
[1728046304134,4.18697,2388.4,2387.9,4.18775]
[1728046304445,0.98494344,2388.5,2387.9,4.18775]
[1728046304446,0.98494344,2388.5,2388.0,4.18758]
[1728046304639,5.00622,2388.6,2388.0,4.18758]
[1728046304640,5.00622,2388.6,2388.1,4.18734]
[1728046304855,0.8196,2388.6,2388.3,4.18699]
[1728046305154,0.8196,2388.6,2388.1,0.09120135]
[1728046305155,0.7813,2388.8,2388.4,4.18689]
[1728046305330,4.9675,2388.8,2388.4,0.09081418]
[1728046305635,4.9675,2388.8,2388.2,4.63358]
[1728046305636,4.9675,2388.8,2388.3,4.18697]
[1728046305839,4.9675,2388.8,2388.5,0.09047817]
[1728046306023,4.18639,2388.7,2388.2,4.63358]
[1728046306226,4.18639,2388.7,2388.2,8.82073]
[1728046306595,4.18639,2388.7,2388.3,0.09070544]
[1728046306799,4.18639,2388.7,2388.2,8.82073]
[1728046306800,4.18639,2388.7,2388.2,4.63358]
[1728046307043,4.18639,2388.7,2388.4,0.09057639]
[1728046307247,1.27805,2388.8,2388.3,4.18705]
[1728046307449,1.27805,2388.8,2388.5,0.09044736]
[1728046307450,5.46429,2388.8,2388.5,0.09044736]
[1728046307743,0.7786,2389.1,2388.6,4.18643]
[1728046307952,0.7786,2389.1,2388.7,0.02298462]
[1728046308100,0.7786,2389.1,2388.6,4.27672733]
[1728046308101,4.96427,2389.1,2388.6,4.27672733]
[1728046308305,4.96427,2389.1,2388.8,0.09002731]
[1728046308508,5.00346,2389.4,2388.9,4.18592]
[1728046308851,4.18533,2389.3,2388.9,0.08989832]
[1728046309312,4.18533,2389.3,2388.9,4.27591832]
[1728046309555,4.18533,2389.3,2388.9,0.08989832]
[1728046309897,0.918873,2389.3,2388.9,4.27581832]
[1728046310063,4.18534,2389.3,2388.9,0.08989832]
[1728046310390,4.18545,2389.3,2388.9,0.08989832]
[1728046310594,4.18559,2389.2,2388.9,0.08989832]
[1728046310751,4.18559,2389.2,2388.7,4.63276]
[1728046310945,4.18559,2389.2,2389.0,0.08976933]
[1728046311143,4.18559,2389.2,2388.7,4.63276]
[1728046311686,4.18533,2389.3,2388.8,4.27620731]
[1728046312266,4.18533,2389.3,2388.8,4.27613731]
[1728046312688,4.18533,2389.3,2388.8,4.27612731]
[1728046314001,4.99053,2389.6,2389.1,4.18559]
[1728046314144,0.8056,2389.6,2389.1,4.18557]
[1728046314488,0.8056,2389.6,2389.2,0.08935081]
[1728046314657,4.9904,2389.6,2389.2,0.08935081]
[1728046314859,0.65616262,2390.0,2389.6,4.18471]
[1728046315199,4.84034262,2390.0,2389.5,4.18494]
[1728046315348,4.18418,2390.0,2389.7,0.08857417]
[1728046315553,4.1844,2389.9,2389.6,0.08869868]
[1728046315782,4.9703,2389.9,2389.8,0.08844088]
[1728046316082,4.18516,2389.4,2389.0,4.60544]
[1728046316452,4.18516,2389.4,2389.0,4.18574]
[1728046316650,4.185,2389.5,2389.0,4.18574]
[1728046316974,4.185,2389.5,2389.0,4.18571]
[1728046317616,4.18469,2389.7,2389.1,0.08912794]
[1728046317794,4.18542,2389.3,2388.8,8.81865]
[1728046318133,4.1856,2389.2,2388.9,0.08938589]
[1728046318473,4.18542,2389.3,2388.9,0.08938589]
[1728046319825,4.18567,2389.1,2389.0,0.08925691]
[1728046320116,4.18588,2389.0,2388.6,3.8662]
[1728046320277,0.496552,2389.3,2388.6,0.4465]
[1728046320475,0.496552,2389.3,2388.2,4.18716]
[1728046320476,4.18648,2388.7,2388.2,4.18716]
[1728046320714,4.18648,2388.7,2388.2,0.418867]
[1728046320916,0.8284,2388.9,2388.0,4.63407]
[1728046320917,4.18691,2388.4,2388.0,4.63407]
[1728046321112,4.18711,2388.3,2388.0,0.4465]
[1728046321311,4.95011,2388.4,2387.9,4.18768]
[1728046321482,4.95011,2388.4,2388.0,4.18757]
[1728046321690,4.95011,2388.4,2387.7,0.4465]
[1728046321875,0.7632,2388.4,2387.9,4.18764]
[1728046322196,4.18678,2388.5,2388.0,4.18754]
[1728046322392,4.18678,2388.5,2387.9,4.18764]
[1728046322570,4.18692,2388.4,2387.9,4.18764]
[1728046323020,4.1872,2388.3,2387.8,3.0]
[1728046323346,8.37262,2388.8,2388.1,4.1873]
[1728046323494,0.8247,2388.9,2388.5,4.18671]
[1728046323681,0.8247,2388.9,2388.3,4.18706]
[1728046323682,4.18613,2388.9,2388.4,4.6334]
[1728046324016,4.18597,2389.0,2388.5,4.1867]
[1728046324241,4.93693,2389.2,2388.5,4.18663]
[1728046324376,4.93693,2389.2,2388.7,4.18636]
[1728046324377,4.18563,2389.2,2388.7,4.18636]
[1728046324830,8.37122,2389.2,2388.7,4.18636]
[1728046325008,4.93656,2389.4,2388.9,4.18602]
[1728046325175,4.93656,2389.4,2388.9,0.4465]
[1728046326031,4.18526,2389.4,2388.9,4.63244]
[1728046326206,4.18489,2389.6,2389.1,4.18566]
[1728046326389,4.18489,2389.6,2389.1,8.37124]
[1728046326576,4.97021,2389.8,2389.2,4.18549]
[1728046326776,0.7857,2389.8,2388.9,4.63239]
[1728046327031,0.7857,2389.8,2388.9,0.4465]
[1728046327184,4.18493,2389.6,2389.0,4.18575]
[1728046327378,8.36983,2389.6,2389.0,4.18575]
[1728046327816,4.1849,2389.6,2389.0,4.18575]
[1728046328326,4.1849,2389.6,2389.2,4.18546]
[1728046328618,4.97028,2389.8,2389.2,4.18547]
[1728046328821,4.18463,2389.7,2389.2,4.18547]
[1728046329127,4.18457,2389.8,2389.2,4.1854]
[1728046329450,4.18384,2390.2,2389.6,4.18466]
[1728046329722,0.7913,2390.4,2389.8,4.18431]
[1728046329723,4.1837,2390.3,2389.8,4.18431]
[1728046330083,4.1837,2390.3,2389.9,4.18427]
[1728046330374,4.1837,2390.3,2389.8,4.18431]
[1728046330579,4.18357,2390.3,2389.8,4.18431]
[1728046330883,0.7913,2390.4,2389.9,4.18427]
[1728046330884,4.97472,2390.4,2389.9,4.18427]
[1728046331108,4.97472,2390.4,2389.5,4.63144]
[1728046331109,8.36729,2390.3,2389.7,4.18446]
[1728046331306,8.36729,2390.3,2389.6,4.18466]
[1728046331307,4.18358,2390.3,2389.8,4.18444]
[1728046331522,0.7913,2390.4,2389.9,4.18427]
[1728046331834,0.7824,2390.6,2390.0,4.18406]
[1728046331979,4.18323,2390.5,2390.0,0.4465]
[1728046332192,4.18342,2390.4,2389.9,4.18427]
[1728046332701,4.18323,2390.5,2390.0,4.2719158]
[1728046332887,0.7824,2390.6,2390.1,4.18386]
[1728046333088,0.7824,2390.6,2390.1,4.27156694]
[1728046333504,4.18297,2390.7,2390.2,4.18369]
[1728046333723,8.36601,2390.7,2390.2,0.0875649]
[1728046334136,4.18297,2390.7,2390.3,0.4465]
[1728046334290,4.1827,2390.8,2390.3,0.4465]
[1728046334663,4.18272,2390.8,2390.4,0.08730723]
[1728046335833,4.96836,2391.0,2390.4,0.08730723]
[1728046336004,4.18253,2390.9,2390.4,4.27069723]
[1728046336199,4.1827,2390.8,2390.4,4.27069723]
[1728046336403,4.18279,2390.8,2390.4,0.08730723]
[1728046337689,5.097903,2390.8,2390.4,0.08730723]
[1728046337910,4.18315,2390.6,2390.4,0.08730723]
[1728046338206,4.18315,2390.6,2390.1,4.18387]
[1728046338439,4.18336,2390.5,2390.0,4.63047]
[1728046338598,4.18336,2390.5,2390.2,0.08714513]
[1728046338788,4.18336,2390.5,2390.0,4.63047]
[1728046338789,4.18341,2390.4,2390.0,4.63047]
[1728046338993,4.18341,2390.4,2390.1,0.08727398]
[1728046339396,4.18359,2390.3,2390.1,0.08727398]
[1728046340062,4.18375,2390.2,2390.1,0.08727398]
[1728046340245,4.18359,2390.3,2389.7,4.63103]
[1728046340541,4.18375,2390.2,2390.1,0.08730913]
[1728046340746,4.18375,2390.2,2389.7,4.63103]
[1728046340957,0.8145,2390.5,2389.7,4.63103]
[1728046340958,4.18393,2390.1,2389.7,0.4465]
[1728046341180,4.18427,2389.9,2389.4,0.4465]
[1728046341344,4.18427,2389.9,2389.4,4.63163]
[1728046341345,8.36869,2389.9,2389.4,4.63163]
[1728046341555,4.18427,2389.9,2389.4,4.63163]
[1728046341894,4.1841,2390.0,2389.5,4.18497]
[1728046342038,4.18406,2390.1,2389.4,4.63163]
[1728046342244,4.18368,2390.3,2389.6,4.18477]
[1728046342468,4.18368,2390.3,2389.4,0.4465]
[1728046342469,4.96062,2390.8,2390.1,4.63031]
[1728046342783,4.18298,2390.7,2390.2,4.18373]
[1728046342987,4.18298,2390.7,2390.1,4.63031]
[1728046343135,4.18298,2390.7,2390.2,4.18374]
[1728046343535,4.18307,2390.6,2390.1,4.63029]
[1728046343840,4.18307,2390.6,2390.1,0.4465]
[1728046344086,8.36601,2390.7,2390.1,4.63034]
[1728046344244,4.18354,2390.4,2389.8,5.50672187]
[1728046344577,4.18323,2390.5,2389.8,4.63084]
[1728046344806,4.18323,2390.5,2390.0,4.18405]
[1728046344962,4.18308,2390.6,2390.1,4.1839]
[1728046345165,4.18308,2390.6,2390.1,4.18389]
[1728046345663,4.96063,2390.8,2390.1,4.18389]
[1728046345664,4.96062,2390.8,2390.1,4.18389]
[1728046345877,4.18306,2390.6,2390.1,4.18389]
[1728046346234,4.18336,2390.5,2390.0,4.18405]
[1728046346595,8.36621,2390.6,2389.9,4.18415]
[1728046346739,4.18306,2390.6,2389.9,4.18415]
[1728046346938,4.18324,2390.5,2390.0,4.18399]
[1728046347151,4.18306,2390.6,2390.1,4.18386]
[1728046347354,4.18306,2390.6,2390.0,4.18399]
[1728046347590,4.9606,2390.8,2390.2,4.27087929]
[1728046347739,4.9606,2390.8,2390.3,8.81353]
[1728046348076,4.183,2390.7,2390.3,0.53354045]
[1728046349147,4.18313,2390.6,2390.3,0.08704045]
[1728046349373,4.1834,2390.4,2390.3,0.08704045]
[1728046349581,8.36693,2390.4,2389.9,4.18424]
[1728046349885,4.96052,2390.8,2389.8,0.4465]
[1728046349886,0.7778,2390.8,2389.8,0.4465]
[1728046350088,0.8268,2390.3,2389.8,0.4465]